bitfinex-derivatives/quotes_BNBF0:USTF0_20241230
["timestamp","ask_amount","ask_price","bid_price","bid_amount"]
[1735599578354,0.26133057,705.08,703.12,0.28444646]
[1735599578550,0.26133057,705.09,703.12,0.28444646]
[1735599578751,0.26133057,705.08,703.12,0.28444646]
[1735599578949,0.26133057,705.09,703.12,0.28444646]
[1735599579153,0.26133057,705.08,703.12,0.28444646]
[1735599579455,1.48282817,705.1,703.12,0.28444646]
[1735599579456,0.26133057,705.07,703.12,0.28444646]
[1735599579655,0.26133057,705.06,703.12,0.28444646]
[1735599579855,0.26133057,705.05,703.12,0.28444646]
[1735599580051,1.48282817,705.1,703.12,0.28444646]
[1735599580052,0.26133057,705.04,703.12,0.28444646]
[1735599580256,0.26133057,705.03,703.12,0.28444646]
[1735599580454,0.26133057,705.09,703.12,0.28444646]
[1735599580652,0.26133057,705.08,703.12,0.28444646]
[1735599580850,0.26133057,705.09,703.12,0.28444646]
[1735599581055,0.26133057,705.08,703.12,0.28444646]
[1735599581256,0.26133057,705.07,703.12,0.28444646]
[1735599581454,1.48282817,705.1,703.12,0.28444646]
[1735599581455,0.26133057,705.06,703.12,0.28444646]
[1735599581754,0.26133057,705.05,703.12,0.28444646]
[1735599581955,0.26133057,705.04,703.12,0.28444646]
[1735599582155,0.26133057,705.03,703.12,0.28444646]
[1735599582351,0.26133057,705.02,703.12,0.28444646]
[1735599582551,0.26133057,705.01,703.12,0.28444646]
[1735599582754,0.26133057,705.0,703.12,0.28444646]
[1735599582952,0.26133057,704.99,703.12,0.28444646]
[1735599583152,0.26133748,704.98,703.12,0.28444646]
[1735599583355,0.26133748,705.09,703.12,0.28444646]
[1735599583556,0.26133748,705.08,703.12,0.28444646]
[1735599583756,0.26133748,705.07,703.12,0.28444646]
[1735599583951,1.48282817,705.1,703.12,0.28444646]
[1735599583952,0.26133748,705.06,703.12,0.28444646]
[1735599584156,0.26133748,705.05,703.12,0.28444646]
[1735599584360,0.26133748,705.04,703.12,0.28444646]
[1735599584558,0.26133748,705.03,703.12,0.28444646]
[1735599584758,0.26133748,705.02,703.12,0.28444646]
[1735599584957,0.26133748,705.01,703.12,0.28444646]
[1735599585157,0.26133748,705.0,703.12,0.28444646]
[1735599585554,1.48315995,705.01,703.12,0.28444646]
[1735599586259,0.26125492,705.0,703.12,0.28444646]
[1735599590962,0.26126483,704.99,703.12,0.28444646]
[1735599591157,1.48315995,705.01,703.12,0.28444646]
[1735599591158,0.26126483,704.98,703.12,0.28444646]
[1735599591358,0.26126483,704.97,703.12,0.28444646]
[1735599591562,0.26126483,704.96,703.12,0.28444646]
[1735599591865,0.26126483,704.95,703.12,0.28444646]
[1735599592064,0.26126483,704.94,703.12,0.28444646]
[1735599592259,0.26126483,704.93,703.12,0.28444646]
[1735599592464,0.26126483,704.92,703.12,0.28444646]
[1735599592661,1.48315995,705.01,703.12,0.28444646]
[1735599592862,0.26126404,705.0,703.12,0.28444646]
[1735599593561,0.26126404,704.99,703.12,0.28444646]
[1735599593757,0.26126404,704.98,703.12,0.28444646]
[1735599594166,0.26126174,704.97,703.12,0.28444646]
[1735599594460,0.26126174,704.96,703.12,0.28444646]
[1735599594665,0.26126174,704.95,703.12,0.28444646]
[1735599594859,0.28369196,704.99,703.12,0.28444646]
[1735599594860,0.26126174,704.94,703.12,0.28444646]
[1735599595059,1.48315995,705.01,703.12,0.28444646]
[1735599595060,0.54497785,704.93,703.12,0.28444646]
[1735599595259,0.54498187,704.92,703.12,0.28444646]
[1735599595464,0.5449859,704.91,703.12,0.28444646]
[1735599595767,0.26126174,704.9,703.12,0.28444646]
[1735599595964,0.28373221,704.89,703.12,0.28444646]
[1735599596364,0.26125116,704.88,703.12,0.28444646]
[1735599596767,0.28373221,704.89,703.12,0.28444646]
[1735599597165,0.2612372,704.88,703.12,0.28444646]
[1735599597467,0.2612372,704.88,703.12,1.34199364]
[1735599597662,0.28373221,704.89,703.12,1.34199364]
[1735599598565,0.28373221,704.89,703.24,1.05754718]
[1735599598963,0.28373221,704.89,703.26,0.28438984]
[1735599599361,0.28373221,704.89,703.27,1.05754718]
[1735599599762,0.28373221,704.89,703.29,0.28437771]
[1735599600664,0.28373221,704.89,703.31,1.05754718]
[1735599601668,0.28373221,704.89,703.32,1.05754718]
[1735599603474,0.28373221,704.89,703.45,1.05754718]
[1735599604373,0.28373221,704.89,703.49,1.05754718]
[1735599606174,0.26125077,704.88,703.49,1.05754718]
[1735599607274,0.26125077,704.88,703.29,0.28437771]
[1735599607275,0.26125077,704.88,703.54,1.05754718]
[1735599607481,0.26126196,704.87,703.54,1.05754718]
[1735599607679,0.26126196,704.86,703.54,1.05754718]
[1735599607880,0.26126196,704.85,703.54,1.05754718]
[1735599608081,0.26126196,704.84,703.54,1.05754718]
[1735599608281,0.26126196,704.83,703.54,1.05754718]
[1735599608484,0.261289,704.82,703.52,1.05754718]
[1735599609376,0.2612916,704.81,703.52,1.05754718]
[1735599609577,0.2612916,704.82,703.46,1.05754718]
[1735599609776,0.2612916,704.81,703.46,1.05754718]
[1735599609981,0.2612916,704.8,703.46,1.05754718]
[1735599610182,0.2612916,704.79,703.46,1.05754718]
[1735599610482,0.2612916,704.78,703.46,1.05754718]
[1735599610686,0.2612916,704.77,703.52,1.05754718]
[1735599610883,0.2612916,704.76,703.52,1.05754718]
[1735599611087,0.2612916,704.75,703.52,1.05754718]
[1735599611386,0.26130258,704.74,703.52,1.05754718]
[1735599611578,0.26130258,704.73,703.52,1.05754718]
[1735599611786,0.26130258,704.72,703.52,1.05754718]
[1735599611980,1.48284923,704.83,703.52,1.05754718]
[1735599612185,0.26131362,704.82,703.53,1.05754718]
[1735599612380,0.26131398,704.81,703.53,1.05754718]
[1735599612579,0.26131398,704.8,703.53,1.05754718]
[1735599612779,1.48284923,704.83,703.53,1.05754718]
[1735599613386,1.48284923,704.83,703.29,0.28437771]
[1735599613387,1.48284923,704.83,703.36,1.05754718]
[1735599614687,1.48284923,704.83,703.29,0.28437771]
[1735599615481,0.26131475,704.82,703.28,1.05754718]
[1735599615684,0.26131475,704.81,703.27,1.05754718]
[1735599615882,0.26131475,704.8,703.27,1.05754718]
[1735599616081,0.26131475,704.79,703.27,1.05754718]
[1735599616289,0.26131475,704.78,703.27,1.05754718]
[1735599616486,0.26154615,704.77,703.27,1.05754718]
[1735599616787,1.06899681,704.36,702.83,1.05754718]
[1735599616988,0.26154615,704.35,702.83,1.05754718]
[1735599617286,0.26154913,704.34,702.83,1.05754718]
[1735599617486,0.26154913,704.33,702.83,1.05754718]
[1735599617687,0.26154913,704.32,702.63,1.05754718]
[1735599617986,0.26154913,704.31,702.64,0.28464078]
[1735599618187,0.26154913,704.3,702.64,0.28464078]
[1735599618387,0.26154913,704.29,702.64,0.28464078]
[1735599618689,1.74568951,704.28,702.64,0.28464078]
[1735599618888,0.26154913,704.27,702.64,0.28464078]
[1735599619089,0.26153604,704.26,702.64,0.28464078]
[1735599619300,0.26153604,704.25,702.64,0.28464078]
[1735599619590,0.26153604,704.24,702.64,0.28464078]
[1735599619789,1.48414038,704.28,702.64,0.28464078]
[1735599619790,0.26153604,704.23,702.64,0.28464078]
[1735599619988,0.26153604,704.22,702.64,0.28464078]
[1735599620190,0.26153604,704.21,702.64,0.28464078]
[1735599620490,1.48414038,704.28,702.64,0.28464078]
[1735599620685,0.2615254,704.27,702.64,0.28464078]
[1735599620891,1.48414038,704.28,702.64,0.28464078]
[1735599622292,0.26163236,704.27,702.64,0.28464078]
[1735599624289,1.48414038,704.28,702.64,0.28464078]
[1735599624494,0.26155801,704.27,702.64,0.28464078]
[1735599624993,0.26153862,704.26,702.64,0.28464078]
[1735599625293,0.26153862,704.25,702.64,0.28464078]
[1735599625592,0.26153862,704.24,702.64,0.28464078]
[1735599625787,0.26153862,704.23,702.64,0.28464078]
[1735599625993,0.26153862,704.22,702.64,0.28464078]
[1735599626194,0.26153862,704.21,702.64,0.28464078]
[1735599626395,0.26153862,704.2,702.64,0.28464078]
[1735599626586,0.26153862,704.19,702.64,0.28464078]
[1735599626786,0.26153862,704.18,702.64,0.28464078]
[1735599626994,0.26153862,704.27,702.64,0.28464078]
[1735599627191,0.26153862,704.26,702.64,0.28464078]
[1735599627394,0.26153862,704.25,702.64,0.28464078]
[1735599627595,0.26153862,704.24,702.64,0.28464078]
[1735599627894,0.26153862,704.23,702.64,0.28464078]
[1735599628095,0.26153862,704.22,702.64,0.28464078]
[1735599628295,0.26153862,704.21,702.64,0.28464078]
[1735599628496,0.26153862,704.2,702.64,0.28464078]
[1735599628696,0.26153862,704.19,702.64,0.28464078]
[1735599628895,0.26153862,704.18,702.64,0.28464078]
[1735599629098,0.26153862,704.17,702.64,0.28464078]
[1735599629298,0.26153862,704.16,702.64,0.28464078]
[1735599629598,0.26151877,704.15,702.64,0.28464078]
[1735599629898,0.26151962,704.14,702.64,0.28464078]
[1735599630098,0.26151962,704.13,702.64,0.28464078]
[1735599630289,0.26151962,704.12,702.64,0.28464078]
[1735599630495,0.26151962,704.11,702.64,0.28464078]
[1735599630698,0.26151962,704.1,702.64,0.28464078]
[1735599630997,0.26151962,704.09,702.64,0.28464078]
[1735599631197,0.26151962,704.08,702.64,0.28464078]
[1735599631394,0.26151962,704.07,702.64,0.28464078]
[1735599631698,0.26151962,704.06,702.64,0.28464078]
[1735599631997,1.48446748,704.19,702.64,0.28464078]
[1735599632198,0.26151891,704.18,702.64,0.28464078]
[1735599632800,1.48446748,704.19,702.64,0.28464078]
[1735599632993,0.26151858,704.17,702.64,0.28464078]
[1735599633196,0.26151858,704.16,702.64,0.28464078]
[1735599633396,0.26151858,704.15,702.64,0.28464078]
[1735599633599,0.26151858,704.14,702.64,0.28464078]
[1735599633797,0.26151858,704.13,702.64,0.28464078]
[1735599633996,0.26151858,704.12,702.64,0.28464078]
[1735599634193,0.26151858,704.18,702.64,0.28464078]
[1735599634398,1.48446748,704.19,702.64,0.28464078]
[1735599634399,0.26151858,704.17,702.64,0.28464078]
[1735599634597,0.26151858,704.16,702.64,0.28464078]
[1735599634797,0.26151858,704.15,702.64,0.28464078]
[1735599635000,0.2615217,704.18,702.64,0.28464078]
[1735599635196,0.2615217,704.17,702.64,0.28464078]
[1735599635497,0.2615217,704.16,702.64,0.28464078]
[1735599635693,0.2615217,704.15,702.64,0.28464078]
[1735599635893,0.2615217,704.18,702.64,0.28464078]
[1735599636099,0.2615217,704.17,702.64,0.28464078]
[1735599636398,0.2615217,704.16,702.64,0.28464078]
[1735599636599,0.2615217,704.15,702.64,0.28464078]
[1735599636902,0.2615217,704.14,702.64,0.28464078]
[1735599637104,0.2615217,704.13,702.64,0.28464078]
[1735599637302,1.48446748,704.19,702.64,0.28464078]
[1735599637601,0.26157998,704.18,702.64,0.28464078]
[1735599637804,0.26157998,704.17,702.64,0.28464078]
[1735599637999,0.26157998,704.16,702.64,0.28464078]
[1735599638196,0.26157998,704.15,702.64,0.28464078]
[1735599638502,0.26157998,704.14,702.64,0.28464078]
[1735599638802,0.26157998,704.13,702.64,0.28464078]
[1735599638998,0.26157998,704.12,702.64,0.28464078]
[1735599639202,0.26157998,704.11,702.64,0.28464078]
[1735599639398,0.26157998,704.1,702.64,0.28464078]
[1735599639594,0.26157998,704.09,702.64,0.28464078]
[1735599640003,0.26158067,704.08,702.64,0.28464078]
[1735599640203,0.26158067,704.07,702.64,0.28464078]
[1735599640501,0.26158067,704.06,702.64,0.28464078]
[1735599640701,0.26158067,704.05,702.64,0.28464078]
[1735599640902,0.26158067,704.04,702.64,0.28464078]
[1735599641103,0.26158067,704.03,702.64,0.28464078]
[1735599641402,0.26158067,704.02,702.64,0.28464078]
[1735599641599,0.26158067,704.01,702.64,0.28464078]
[1735599641802,0.26158067,704.0,702.64,0.28464078]
[1735599641997,0.26158067,703.99,702.64,0.28464078]
[1735599642200,1.48463636,704.1,702.64,0.28464078]
[1735599642201,0.26158067,703.98,702.64,0.28464078]
[1735599642402,0.26158067,703.97,702.64,0.28464078]
[1735599642597,0.26158067,703.96,702.64,0.28464078]
[1735599642797,0.26158067,703.95,702.64,0.28464078]
[1735599642998,0.26158067,703.94,702.64,0.28464078]
[1735599643198,0.26158067,703.93,702.64,0.28464078]
[1735599643402,1.48463636,704.1,702.64,0.28464078]
[1735599643704,0.54564446,704.09,702.64,0.28464078]
[1735599644004,0.26158987,704.08,702.64,0.28464078]
[1735599645304,0.26158945,704.07,702.64,0.28464078]
[1735599645503,0.26158945,704.06,702.64,0.28464078]
[1735599645703,0.26158945,704.05,702.64,0.28464078]
[1735599645903,0.26158945,704.04,702.64,0.28464078]
[1735599646104,0.26158945,704.03,702.64,0.28464078]
[1735599646301,0.26158945,704.02,702.64,0.28464078]
[1735599646505,0.26158945,704.01,702.64,0.28464078]
[1735599646705,0.26158945,704.0,702.64,0.28464078]
[1735599646899,0.26158945,703.99,702.64,0.28464078]
[1735599647103,0.26158945,703.98,702.64,0.28464078]
[1735599647303,0.28405459,704.09,702.64,0.28464078]
[1735599647503,0.26159277,704.08,702.64,0.28464078]
[1735599647806,0.28406266,704.07,702.64,0.28464078]
[1735599648004,0.54565091,704.07,702.64,0.28464078]
[1735599648301,0.26158825,704.06,702.64,0.28464078]
[1735599648709,0.28407073,704.05,702.64,0.28464078]
[1735599648907,0.26158825,704.04,702.64,0.28464078]
[1735599649308,0.2840788,704.03,702.64,0.28464078]
[1735599649509,0.26158825,704.02,702.64,0.28464078]
[1735599649703,0.28408283,704.02,702.64,0.28464078]
[1735599649905,1.48462053,704.01,702.64,0.28464078]
[1735599650706,1.48462053,704.01,702.72,1.05754718]
[1735599651709,1.48462053,704.01,702.75,1.05754718]
[1735599651913,0.26152365,704.0,702.75,1.05754718]
[1735599653012,0.26152365,704.0,702.96,1.05754718]
[1735599654211,0.26152365,704.0,702.97,1.05754718]
[1735599654714,1.48462053,704.01,702.97,1.05754718]
[1735599655110,1.48462053,704.01,702.95,1.05754718]
[1735599656517,1.48462053,704.01,702.92,1.05754718]
[1735599657115,0.26153065,704.0,702.92,1.05754718]
[1735599657516,1.48462053,704.01,702.92,1.05754718]
[1735599657816,1.48462053,704.01,702.93,1.05754718]
[1735599659117,1.48462053,704.01,702.98,1.05754718]
[1735599661817,0.26153066,704.0,702.98,1.05754718]
[1735599662220,0.26153066,704.0,702.65,1.7603211]
[1735599662221,0.26153066,704.0,703.0,1.05754718]
[1735599663622,0.26153066,704.0,702.98,1.05754718]
[1735599663816,0.26154298,703.99,702.98,1.05754718]
[1735599664016,1.48462053,704.01,702.98,1.05754718]
[1735599664222,0.26154394,704.0,702.98,1.05754718]
[1735599665018,0.28408283,704.02,702.98,1.05754718]
[1735599665225,1.48398743,704.13,702.95,1.05754718]
[1735599665619,1.06899681,704.16,702.95,1.05754718]
[1735599665924,2.5528946,704.16,702.95,1.05754718]
[1735599666125,1.06899681,704.16,702.95,1.05754718]
[1735599666522,1.48385561,704.25,702.73,1.05754718]
[1735599667823,1.48385561,704.25,703.08,1.05754718]
[1735599669028,1.48385561,704.25,702.99,1.05754718]
[1735599670227,1.48385561,704.25,703.08,1.05754718]
[1735599671233,1.48385561,704.25,703.06,1.05754718]
[1735599672126,1.48385561,704.25,702.78,1.05754718]
[1735599673434,1.48385561,704.25,702.81,1.05754718]
[1735599674336,1.48385561,704.25,702.64,0.28464078]
[1735599675439,1.48385561,704.25,702.65,1.05754718]
[1735599675932,1.48385561,704.25,702.67,0.28462863]
[1735599676333,1.48385561,704.25,702.67,1.34217581]
[1735599677837,1.48385561,704.25,702.68,1.05754718]
[1735599678941,1.48385561,704.25,702.67,1.34217581]
[1735599680039,1.48385561,704.25,702.68,0.28462458]
[1735599680440,1.48385561,704.25,702.74,1.05754718]
[1735599681241,1.48385561,704.25,702.75,0.28459622]
[1735599681442,1.48385561,704.25,702.76,1.05754718]
[1735599682337,1.48385561,704.25,702.78,1.05754718]
[1735599683144,1.48385561,704.25,702.79,0.28458003]
[1735599683539,1.48385561,704.25,702.79,1.34212721]
[1735599684844,1.48385561,704.25,703.0,1.05754718]
[1735599686348,1.48385561,704.25,703.06,1.05754718]
[1735599687342,1.48385561,704.25,703.07,1.05754718]
[1735599688747,1.48385561,704.25,703.08,1.05754718]
[1735599689650,1.48385561,704.25,703.07,1.05754718]
[1735599690045,1.06899681,704.82,703.07,1.05754718]
[1735599690251,0.28376441,704.81,703.07,1.05754718]
[1735599690453,1.48357094,704.35,703.07,1.05754718]
[1735599690646,0.28376441,704.81,703.07,1.05754718]
[1735599690850,1.48327058,704.8,703.07,1.05754718]
[1735599691051,1.48327058,704.8,702.95,1.05754718]
[1735599691550,1.48327058,704.8,702.97,0.28450716]
[1735599692247,0.28377247,704.79,702.97,0.28450716]
[1735599692451,0.28377247,704.79,703.16,1.05754718]
[1735599692848,0.26133485,704.78,703.16,1.05754718]
[1735599693052,0.26133485,704.77,703.16,1.05754718]
[1735599693354,0.26133485,704.76,703.23,1.05754718]
[1735599693554,0.26133485,704.75,703.23,1.05754718]
[1735599693755,0.26133485,704.74,703.23,1.05754718]
[1735599694056,0.26133485,704.73,703.23,1.05754718]
[1735599694249,0.26143241,704.72,703.23,1.05754718]
[1735599694455,0.26143241,704.71,703.23,1.05754718]
[1735599694754,1.06899681,704.65,703.11,1.05754718]
[1735599694954,0.26143241,704.64,703.11,1.05754718]
[1735599695757,0.28384093,704.62,703.11,1.05754718]
[1735599695957,0.26143241,704.61,703.11,1.05754718]
[1735599696255,0.28385302,704.59,703.11,1.05754718]
[1735599696450,0.26143241,704.58,703.11,1.05754718]
[1735599696751,0.26143241,704.58,703.14,1.05754718]
[1735599697051,0.28385302,704.59,703.14,1.05754718]
[1735599698156,0.28385302,704.59,702.97,0.28450716]
[1735599701155,1.48375016,704.58,702.97,0.28450716]
[1735599705758,0.2614627,704.57,702.97,0.28450716]
[1735599706460,0.2614627,704.57,702.8,1.05754718]
[1735599706861,0.28386913,704.55,702.8,1.05754718]
[1735599707060,0.2614627,704.54,702.8,1.05754718]
[1735599707362,0.28388122,704.52,702.8,1.05754718]
[1735599707660,0.28388122,704.52,702.88,1.05754718]
[1735599707661,1.06899681,704.33,702.88,1.05754718]
[1735599707859,0.26155025,704.32,702.88,1.05754718]
[1735599708160,0.28396989,704.3,702.88,1.05754718]
[1735599708460,0.26155025,704.29,702.88,1.05754718]
[1735599708662,0.26155025,704.29,702.17,2.15915883]
[1735599708663,0.26155025,704.29,702.78,1.05754718]
[1735599708859,0.28398199,704.27,702.78,1.05754718]
[1735599709154,0.26155025,704.26,702.78,1.05754718]
[1735599709959,0.26155025,704.26,702.69,1.05754718]
[1735599710156,0.26160677,704.25,702.69,1.05754718]
[1735599710359,0.26160677,704.24,702.69,1.05754718]
[1735599710654,0.26160677,704.23,702.69,1.05754718]
[1735599711052,0.26160677,704.23,702.06,0.70205161]
[1735599711053,1.06899681,704.15,702.6,1.05754718]
[1735599711256,0.2616334,704.14,702.6,1.05754718]
[1735599712059,0.2616334,704.14,702.31,1.05754718]
[1735599712060,0.2616334,704.13,702.52,1.05754718]
[1735599712360,0.2616334,704.12,702.52,1.05754718]
[1735599712559,0.2616334,704.11,702.52,1.05754718]
[1735599712860,0.26168535,704.1,702.52,1.05754718]
[1735599713059,0.26168535,704.09,702.36,1.05754718]
[1735599713257,0.26168535,704.08,702.36,1.05754718]
[1735599713454,1.06899681,704.16,702.36,1.05754718]
[1735599713656,1.06899681,704.16,702.38,0.28474614]
[1735599714154,1.06899681,704.09,702.38,0.28474614]
[1735599715561,1.48464692,704.22,702.38,0.28474614]
[1735599718156,0.28400619,704.21,702.38,0.28474614]
[1735599718963,0.28400619,704.21,702.5,1.05754718]
[1735599720164,0.28400619,704.21,702.51,1.05754718]
[1735599721261,0.28400619,704.21,702.45,1.05754718]
[1735599722759,0.28400619,704.21,702.61,1.05754718]
[1735599723860,0.26153854,704.2,702.61,1.05754718]
[1735599724063,0.26153854,704.2,702.46,1.05754718]
[1735599724865,0.28400619,704.21,702.46,1.05754718]
[1735599725169,0.26159181,704.2,702.48,1.05754718]
[1735599725664,0.2615637,704.19,702.48,1.05754718]
[1735599725857,0.2615637,704.18,702.48,1.05754718]
[1735599726058,0.26157731,704.17,702.48,1.05754718]
[1735599726263,0.26157731,704.16,702.52,1.05754718]
[1735599726460,0.26157731,704.15,702.52,1.05754718]
[1735599726659,0.26157731,704.14,702.52,1.05754718]
[1735599726864,0.26157731,704.13,702.52,1.05754718]
[1735599727066,0.26157731,704.12,702.52,1.05754718]
[1735599727567,0.26157144,704.11,702.51,1.05754718]
[1735599727864,0.26157144,704.1,702.51,1.05754718]
[1735599728067,0.26157144,704.09,702.51,1.05754718]
[1735599728362,0.26157144,704.08,702.51,1.05754718]
[1735599728566,0.26157144,704.07,702.53,1.05754718]
[1735599728765,0.26157144,704.06,702.53,1.05754718]
[1735599728964,0.26157144,704.05,702.53,1.05754718]
[1735599729159,0.26157144,704.04,702.53,1.05754718]
[1735599729366,0.26157144,704.03,702.53,1.05754718]
[1735599729661,0.26157144,704.02,702.51,1.05754718]
[1735599729865,0.26157144,704.01,702.51,1.05754718]
[1735599730066,0.26157144,704.0,702.51,1.05754718]
[1735599730260,0.26157144,703.99,702.51,1.05754718]
[1735599730466,0.26157144,704.12,702.51,1.05754718]
[1735599730665,1.48460997,704.13,702.38,0.28474614]
[1735599730666,0.26157144,704.11,702.52,1.05754718]
[1735599730865,0.26157144,704.1,702.52,1.05754718]
[1735599731164,1.48460997,704.13,702.52,1.05754718]
[1735599731366,0.26156982,704.12,702.52,1.05754718]
[1735599731662,1.48460997,704.13,702.47,1.05754718]
[1735599733467,0.26157976,704.12,702.47,1.05754718]
[1735599733765,0.5231482,704.12,702.47,1.05754718]
[1735599733968,0.5231482,704.12,702.51,1.05754718]
[1735599734163,0.26157976,704.12,702.51,1.05754718]
[1735599734363,0.26155899,704.11,702.51,1.05754718]
[1735599734565,0.26157976,704.12,702.51,1.05754718]
[1735599735468,0.26152739,704.11,702.7,1.05754718]
[1735599737067,0.26152739,704.11,702.77,1.05754718]
[1735599738065,0.26157976,704.12,702.77,1.05754718]
[1735599738266,0.26157976,704.12,702.78,1.05754718]
[1735599739269,0.26157976,704.12,702.79,1.05754718]
[1735599740371,0.26157976,704.12,702.82,1.05754718]
[1735599741066,1.48460997,704.13,702.82,1.05754718]
[1735599741270,0.28404652,704.11,702.82,1.05754718]
[1735599741469,0.28404652,704.11,702.83,1.05754718]
[1735599742274,0.28404652,704.11,702.84,1.05754718]
[1735599743373,0.28404652,704.11,702.83,1.05754718]
[1735599744579,0.28404652,704.11,702.85,1.05754718]
[1735599745286,0.2615423,704.1,702.85,1.05754718]
[1735599745486,0.28404652,704.11,702.85,1.05754718]
[1735599745680,0.26153681,704.1,702.85,1.05754718]
[1735599745884,0.28404652,704.11,702.79,1.05754718]
[1735599746079,0.26153246,704.1,702.79,1.05754718]
[1735599746573,0.28404652,704.11,702.79,1.05754718]
[1735599746777,0.28404652,704.11,702.87,1.05754718]
[1735599748073,0.28404652,704.11,702.85,1.05754718]
[1735599749377,0.28404652,704.11,702.9,1.05754718]
[1735599750477,0.26156978,704.1,702.9,1.05754718]
[1735599750674,0.26156978,704.1,702.53,1.05754718]
[1735599750675,0.26156978,704.1,702.87,1.05754718]
[1735599751682,0.26165242,704.09,702.87,1.05754718]
[1735599751980,0.28404652,704.11,702.39,0.69996605]
[1735599751981,1.06899681,703.93,702.74,1.05754718]
[1735599752185,0.26165242,703.92,702.74,1.05754718]
[1735599752581,1.48503233,703.91,702.74,1.05754718]
[1735599752782,0.26165242,703.9,702.74,1.05754718]
[1735599753183,1.06899681,703.87,702.5,1.05754718]
[1735599753378,0.26165242,703.86,702.5,1.05754718]
[1735599754086,0.26165242,703.86,702.38,0.28474614]
[1735599754287,0.26170972,703.85,702.38,0.28474614]
[1735599754488,0.26170972,703.84,702.38,0.28474614]
[1735599754688,0.26170972,703.83,702.38,0.28474614]
[1735599754987,0.26170972,703.82,702.38,0.28474614]
[1735599755287,0.26170972,703.81,702.38,0.28474614]
[1735599755487,0.26170972,703.8,702.38,0.28474614]
[1735599755680,0.26170972,703.79,702.38,0.28474614]
[1735599755882,0.26170972,703.78,702.38,0.28474614]
[1735599756084,0.26170972,703.77,702.38,0.28474614]
[1735599756285,0.26170972,703.76,702.38,0.28474614]
[1735599756484,0.26170972,703.75,702.38,0.28474614]
[1735599756785,1.48503233,703.91,702.38,0.28474614]
[1735599756987,0.2616993,703.9,702.38,0.28474614]
[1735599759488,0.28413934,703.88,702.38,0.28474614]
[1735599759684,0.26170562,703.87,702.38,0.28474614]
[1735599761086,0.28415145,703.85,702.38,0.28474614]
[1735599761290,0.26170562,703.84,702.38,0.28474614]
[1735599761592,0.28416356,703.82,702.38,0.28474614]
[1735599761791,0.26170562,703.81,702.38,0.28474614]
[1735599762192,0.26171016,703.8,702.38,0.28474614]
[1735599762387,0.28417971,703.78,702.38,0.28474614]
[1735599762593,0.26171016,703.77,702.38,0.28474614]
[1735599762892,0.28419182,703.75,702.38,0.28474614]
[1735599763093,0.26171016,703.74,702.38,0.28474614]
[1735599764689,0.28419182,703.75,702.38,0.28474614]
[1735599764893,0.2617425,703.74,702.38,0.28474614]
[1735599765397,0.28419182,703.75,702.38,0.28474614]
[1735599765591,0.26177627,703.73,702.38,0.28474614]
[1735599765896,0.26177627,703.72,702.38,0.28474614]
[1735599766092,0.26177627,703.71,702.38,0.28474614]
[1735599766297,0.28419182,703.75,702.38,0.28474614]
[1735599766298,0.26177627,703.7,702.38,0.28474614]
[1735599766597,0.26177627,703.69,702.38,0.28474614]
[1735599766797,0.26177627,703.68,702.38,0.28474614]
[1735599766995,0.26177627,703.67,702.38,0.28474614]
[1735599767194,0.26177627,703.66,702.38,0.28474614]
[1735599767490,0.26177709,703.65,702.38,0.28474614]
[1735599767697,0.26177709,703.64,702.38,0.28474614]
[1735599767890,0.26177623,703.74,702.38,0.28474614]
[1735599768096,0.26177623,703.73,702.38,0.28474614]
[1735599768297,0.26177623,703.72,702.38,0.28474614]
[1735599768597,0.26177623,703.71,702.38,0.28474614]
[1735599768793,0.26177623,703.7,702.38,0.28474614]
[1735599768990,0.26177623,703.69,702.38,0.28474614]
[1735599769195,0.26177623,703.68,701.82,1.05754718]
[1735599769395,0.26177623,703.67,701.83,0.28496929]
[1735599769592,0.26177623,703.66,701.83,0.28496929]
[1735599769794,0.26177623,703.65,701.83,0.28496929]
[1735599769996,0.26177623,703.64,701.87,1.05754718]
[1735599770195,0.26177623,703.63,701.87,1.05754718]
[1735599770496,0.26177623,703.62,701.87,1.05754718]
[1735599770697,0.28419182,703.75,701.87,1.05754718]
[1735599770698,0.26177623,703.61,701.87,1.05754718]
[1735599770897,0.26177623,703.6,701.87,1.05754718]
[1735599771099,0.26177623,703.59,701.87,1.05754718]
[1735599771398,0.26177623,703.58,701.87,1.05754718]
[1735599771599,0.26177623,703.58,701.83,0.28496929]
[1735599771600,0.26177623,703.57,701.92,1.05754718]
[1735599771898,0.26177623,703.56,701.92,1.05754718]
[1735599772097,0.26177623,703.55,701.92,1.05754718]
[1735599772299,0.26177623,703.54,701.92,1.05754718]
[1735599772601,0.26194075,703.53,701.92,1.05754718]
[1735599772799,0.26194075,703.52,701.9,1.05754718]
[1735599772994,0.26194075,703.51,701.9,1.05754718]
[1735599773194,0.26194075,703.5,701.9,1.05754718]
[1735599773397,0.26194598,703.49,701.9,1.05754718]
[1735599773593,0.26194598,703.48,701.9,1.05754718]
[1735599773793,0.26194598,703.47,701.9,1.05754718]
[1735599774000,0.26194598,703.46,701.9,1.05754718]
[1735599774199,0.26194598,703.46,701.83,0.28496929]
[1735599774200,0.546259,703.45,701.83,0.28496929]
[1735599774399,0.26194598,703.44,701.83,0.28496929]
[1735599774595,0.28432515,703.42,701.83,0.28496929]
[1735599774800,0.26194598,703.41,701.83,0.28496929]